[Event "Titled Tuesday Blitz April 4 Early 2023"]
[White "Rizzo, Tobias"]
[Black "Matinian, Nikita"]
[WhiteFideId "30942691"]
[BlackFideId "24129100"]
[WhiteElo "2420"]
[BlackElo "2422"]
[Result "0-1"]
[Round "02"]
[TimeControl "180+2"]
[Date "2023.04.04"]
[WhiteClock "0:00:22"]
[BlackClock "0:01:24"]

1. d4 {[%clk 0:03:00]}  Nf6 {[%clk 0:02:59]} 2. Bg5 {[%clk 0:03:00]}  e6 {[%clk 0:02:58]} 3. e4 {[%clk 0:03:01]}  h6 {[%clk 0:02:57]} 4. Bxf6 {[%clk 0:03:00]}  Qxf6 {[%clk 0:02:58]} 5. c3 {[%clk 0:03:01]}  d6 {[%clk 0:02:56]} 6. Nf3 {[%clk 0:02:58]}  g5 {[%clk 0:02:55]} 7. Bd3 {[%clk 0:02:56]}  Bg7 {[%clk 0:02:54]} 8. Na3 {[%clk 0:02:32]}  a6 {[%clk 0:02:53]} 9. Nc4 {[%clk 0:02:26]}  Nd7 {[%clk 0:02:53]} 10. O-O {[%clk 0:02:21]}  b5 {[%clk 0:02:53]} 11. Ne3 {[%clk 0:02:21]}  Bb7 {[%clk 0:02:53]} 12. Re1 {[%clk 0:02:19]}  h5 {[%clk 0:02:51]} 13. a4 {[%clk 0:02:15]}  g4 {[%clk 0:02:50]} 14. Nd2 {[%clk 0:02:15]}  b4 {[%clk 0:02:49]} 15. Ndf1 {[%clk 0:01:54]}  bxc3 {[%clk 0:02:46]} 16. bxc3 {[%clk 0:01:55]}  Ra7 {[%clk 0:02:41]} 17. Rb1 {[%clk 0:01:55]}  Qg5 {[%clk 0:02:36]} 18. Qd2 {[%clk 0:01:35]}  O-O {[%clk 0:02:21]} 19. Nc4 {[%clk 0:01:33]}  Qxd2 {[%clk 0:02:20]} 20. Nfxd2 {[%clk 0:01:34]}  Ba8 {[%clk 0:02:16]} 21. Rb3 {[%clk 0:01:31]}  c5 {[%clk 0:02:14]} 22. Nxd6 {[%clk 0:01:25]}  cxd4 {[%clk 0:02:14]} 23. cxd4 {[%clk 0:01:18]}  Bxd4 {[%clk 0:02:15]} 24. Rc1 {[%clk 0:01:10]}  Nc5 {[%clk 0:02:12]} 25. Ra3 {[%clk 0:01:04]}  Bb2 {[%clk 0:02:11]} 26. Rac3 {[%clk 0:00:51]}  Bxc3 {[%clk 0:02:01]} 27. Rxc3 {[%clk 0:00:52]}  Nxd3 {[%clk 0:01:45]} 28. Rxd3 {[%clk 0:00:52]}  Rd8 {[%clk 0:01:45]} 29. e5 {[%clk 0:00:50]}  f6 {[%clk 0:01:44]} 30. N2c4 {[%clk 0:00:47]}  fxe5 {[%clk 0:01:40]} 31. Nxe5 {[%clk 0:00:46]}  Bd5 {[%clk 0:01:39]} 32. Ne4 {[%clk 0:00:43]}  Rc8 {[%clk 0:01:36]} 33. Nc3 {[%clk 0:00:30]}  Rac7 {[%clk 0:01:35]} 34. Nd1 {[%clk 0:00:22]}  Rc1 {[%clk 0:01:34]} 35. h3 {[%clk 0:00:22]}  Be4 {[%clk 0:01:25]} 36. Rd7 {[%clk 0:00:22]}  Bc2 {[%clk 0:01:24]} 0-1


[Site "https://www.chess.com"]

[Event "Titled Tuesday Blitz April 4 Early 2023"]
[White "Krzywda, Andrzej"]
[Black "Skvortsov, Andrei"]
[WhiteFideId "1114565"]
[BlackFideId "24108600"]
[WhiteElo "2155"]
[BlackElo "2259"]
[Result "0-1"]
[Round "02"]
[TimeControl "180+2"]
[Date "2023.04.04"]
[WhiteClock "0:00:03"]
[BlackClock "0:00:12"]

1. e4 {[%clk 0:03:00]}  d5 {[%clk 0:02:55]} 2. exd5 {[%clk 0:03:00]}  Qxd5 {[%clk 0:02:56]} 3. Nc3 {[%clk 0:02:59]}  Qe5+ {[%clk 0:02:56]} 4. Qe2 {[%clk 0:02:55]}  Qxe2+ {[%clk 0:02:55]} 5. Bxe2 {[%clk 0:02:55]}  c6 {[%clk 0:02:54]} 6. Nf3 {[%clk 0:02:55]}  Bf5 {[%clk 0:02:53]} 7. d3 {[%clk 0:02:51]}  Nd7 {[%clk 0:02:54]} 8. O-O {[%clk 0:02:44]}  e5 {[%clk 0:02:50]} 9. Re1 {[%clk 0:02:43]}  O-O-O {[%clk 0:02:50]} 10. Nd1 {[%clk 0:02:33]}  f6 {[%clk 0:02:45]} 11. Ne3 {[%clk 0:02:33]}  Be6 {[%clk 0:02:45]} 12. Nc4 {[%clk 0:02:32]}  Nb6 {[%clk 0:02:43]} 13. Nxb6+ {[%clk 0:02:31]}  axb6 {[%clk 0:02:44]} 14. Be3 {[%clk 0:02:31]}  Bc5 {[%clk 0:02:42]} 15. a4 {[%clk 0:02:22]}  Kc7 {[%clk 0:02:40]} 16. a5 {[%clk 0:02:22]}  Ne7 {[%clk 0:02:36]} 17. axb6+ {[%clk 0:02:18]}  Bxb6 {[%clk 0:02:37]} 18. Bxb6+ {[%clk 0:02:11]}  Kxb6 {[%clk 0:02:38]} 19. Nd2 {[%clk 0:01:53]}  Ra8 {[%clk 0:02:36]} 20. Ne4 {[%clk 0:01:50]}  Nd5 {[%clk 0:02:33]} 21. g3 {[%clk 0:01:49]}  Kc7 {[%clk 0:02:27]} 22. c3 {[%clk 0:01:47]}  b6 {[%clk 0:02:25]} 23. Bf1 {[%clk 0:01:47]}  Rhd8 {[%clk 0:02:16]} 24. h4 {[%clk 0:01:45]}  Bf5 {[%clk 0:02:15]} 25. Bg2 {[%clk 0:01:40]}  Ne7 {[%clk 0:02:15]} 26. Rad1 {[%clk 0:01:38]}  Ng6 {[%clk 0:02:11]} 27. h5 {[%clk 0:01:31]}  Nf8 {[%clk 0:02:09]} 28. h6 {[%clk 0:01:31]}  gxh6 {[%clk 0:02:09]} 29. Nxf6 {[%clk 0:01:29]}  Ng6 {[%clk 0:02:02]} 30. Be4 {[%clk 0:01:22]}  Bxe4 {[%clk 0:01:54]} 31. dxe4 {[%clk 0:01:15]}  Nf8 {[%clk 0:01:30]} 32. Ng4 {[%clk 0:01:13]}  Rxd1 {[%clk 0:01:29]} 33. Rxd1 {[%clk 0:01:13]}  h5 {[%clk 0:01:29]} 34. Nxe5 {[%clk 0:01:09]}  Re8 {[%clk 0:01:29]} 35. f4 {[%clk 0:01:09]}  Ra8 {[%clk 0:01:27]} 36. Kg2 {[%clk 0:01:09]}  Ra2 {[%clk 0:01:27]} 37. Rd2 {[%clk 0:01:09]}  Ne6 {[%clk 0:01:25]} 38. Kf3 {[%clk 0:01:01]}  Nc5 {[%clk 0:01:25]} 39. f5 {[%clk 0:00:57]}  Nb3 {[%clk 0:01:02]} 40. Rd7+ {[%clk 0:00:51]}  Kc8 {[%clk 0:01:02]} 41. Rxh7 {[%clk 0:00:46]}  Nd2+ {[%clk 0:00:51]} 42. Kf4 {[%clk 0:00:45]}  Ra4 {[%clk 0:00:51]} 43. b4 {[%clk 0:00:43]}  Ra1 {[%clk 0:00:51]} 44. Nxc6 {[%clk 0:00:36]}  b5 {[%clk 0:00:39]} 45. e5 {[%clk 0:00:35]}  Rf1+ {[%clk 0:00:35]} 46. Kg5 {[%clk 0:00:31]}  h4 {[%clk 0:00:35]} 47. gxh4 {[%clk 0:00:27]}  Ne4+ {[%clk 0:00:35]} 48. Kg6 {[%clk 0:00:24]}  Nxc3 {[%clk 0:00:27]} 49. e6 {[%clk 0:00:20]}  Ne4 {[%clk 0:00:24]} 50. e7 {[%clk 0:00:19]}  Nd6 {[%clk 0:00:19]} 51. f6 {[%clk 0:00:17]}  Rg1+ {[%clk 0:00:18]} 52. Kh5 {[%clk 0:00:16]}  Kd7 {[%clk 0:00:18]} 53. Ne5+ {[%clk 0:00:15]}  Ke6 {[%clk 0:00:17]} 54. Ng6 {[%clk 0:00:11]}  Kxf6 {[%clk 0:00:16]} 55. Nf4 {[%clk 0:00:05]}  Ne8 {[%clk 0:00:11]} 56. Nd5+ {[%clk 0:00:04]}  Ke6 {[%clk 0:00:11]} 57. Nf4+ {[%clk 0:00:05]}  Kf6 {[%clk 0:00:11]} 58. Nd5+ {[%clk 0:00:05]}  Ke6 {[%clk 0:00:11]} 59. Nf4+ {[%clk 0:00:03]}  Kf5 {[%clk 0:00:12]} 60. Nd3 {[%clk 0:00:03]}  Nf6+ {[%clk 0:00:11]} 61. Kh6 {[%clk 0:00:03]}  Rg6# {[%clk 0:00:12]} 0-1


[Site "https://www.chess.com"]

[Event "Titled Tuesday Blitz April 4 Early 2023"]
[White "Ezat, Mohamed"]
[Black "Manon-og, Ramon Jr."]
[WhiteFideId "10600906"]
[BlackFideId "5200776"]
[WhiteElo "2386"]
[BlackElo "2377"]
[Result "1-0"]
[Round "02"]
[TimeControl "180+2"]
[Date "2023.04.04"]
[WhiteClock "0:00:46"]
[BlackClock "0:00:09"]

1. d4 {[%clk 0:02:54]}  Nf6 {[%clk 0:02:59]} 2. c4 {[%clk 0:02:54]}  g6 {[%clk 0:03:00]} 3. Nc3 {[%clk 0:02:55]}  d5 {[%clk 0:03:01]} 4. Nf3 {[%clk 0:02:51]}  Bg7 {[%clk 0:03:01]} 5. Bf4 {[%clk 0:02:48]}  O-O {[%clk 0:03:00]} 6. Rc1 {[%clk 0:02:48]}  c6 {[%clk 0:03:01]} 7. e3 {[%clk 0:02:46]}  Qb6 {[%clk 0:02:50]} 8. Qd2 {[%clk 0:02:36]}  Bg4 {[%clk 0:02:42]} 9. Ne5 {[%clk 0:02:34]}  Bf5 {[%clk 0:02:41]} 10. Be2 {[%clk 0:02:32]}  Ne4 {[%clk 0:02:39]} 11. Nxe4 {[%clk 0:02:31]}  Bxe4 {[%clk 0:02:40]} 12. O-O {[%clk 0:02:11]}  Rd8 {[%clk 0:02:26]} 13. cxd5 {[%clk 0:02:07]}  cxd5 {[%clk 0:02:19]} 14. Nxf7 {[%clk 0:02:05]}  Kxf7 {[%clk 0:01:47]} 15. Bc7 {[%clk 0:02:04]}  Qf6 {[%clk 0:01:43]} 16. Bxd8 {[%clk 0:02:04]}  Qg5 {[%clk 0:01:27]} 17. f3 {[%clk 0:02:02]}  Bf5 {[%clk 0:01:24]} 18. Bc7 {[%clk 0:01:57]}  Nc6 {[%clk 0:01:22]} 19. Bf4 {[%clk 0:01:54]}  Qh4 {[%clk 0:01:20]} 20. Bb5 {[%clk 0:01:53]}  Rc8 {[%clk 0:01:10]} 21. a3 {[%clk 0:01:40]}  Bd7 {[%clk 0:00:59]} 22. Rc2 {[%clk 0:01:22]}  Kg8 {[%clk 0:00:54]} 23. Rfc1 {[%clk 0:01:20]}  Rf8 {[%clk 0:00:53]} 24. Bxc6 {[%clk 0:01:18]}  bxc6 {[%clk 0:00:53]} 25. b4 {[%clk 0:01:12]}  a6 {[%clk 0:00:40]} 26. a4 {[%clk 0:01:11]}  h6 {[%clk 0:00:35]} 27. Rc5 {[%clk 0:01:07]}  g5 {[%clk 0:00:35]} 28. Bg3 {[%clk 0:01:07]}  Qh5 {[%clk 0:00:36]} 29. b5 {[%clk 0:01:05]}  axb5 {[%clk 0:00:36]} 30. axb5 {[%clk 0:01:05]}  cxb5 {[%clk 0:00:36]} 31. Rxd5 {[%clk 0:01:05]}  Be8 {[%clk 0:00:36]} 32. Rd8 {[%clk 0:01:03]}  Qf7 {[%clk 0:00:32]} 33. Rcc8 {[%clk 0:00:58]}  h5 {[%clk 0:00:29]} 34. Be5 {[%clk 0:00:57]}  h4 {[%clk 0:00:22]} 35. Bxg7 {[%clk 0:00:55]}  Kxg7 {[%clk 0:00:23]} 36. d5 {[%clk 0:00:55]}  h3 {[%clk 0:00:17]} 37. Qd4+ {[%clk 0:00:54]}  Kg8 {[%clk 0:00:17]} 38. Qg4 {[%clk 0:00:52]}  Qg6 {[%clk 0:00:15]} 39. Qe6+ {[%clk 0:00:47]}  Kg7 {[%clk 0:00:09]} 40. Qxg6+ {[%clk 0:00:46]} 1-0


[Site "https://www.chess.com"]

[Event "Titled Tuesday Blitz April 4 Early 2023"]
[White "Malek, Jan"]
[Black "Qashashvili, Alexandre"]
[WhiteFideId "21864080"]
[BlackFideId "13600842"]
[WhiteElo "2255"]
[BlackElo "2405"]
[Result "0-1"]
[Round "02"]
[TimeControl "180+2"]
[Date "2023.04.04"]
[WhiteClock "0:00:10"]
[BlackClock "0:00:07"]

1. e4 {[%clk 0:03:00]}  c6 {[%clk 0:02:49]} 2. d4 {[%clk 0:02:58]}  d5 {[%clk 0:02:44]} 3. exd5 {[%clk 0:02:58]}  cxd5 {[%clk 0:02:43]} 4. Bd3 {[%clk 0:02:59]}  Nc6 {[%clk 0:02:43]} 5. c3 {[%clk 0:02:59]}  Nf6 {[%clk 0:02:43]} 6. h3 {[%clk 0:03:00]}  g6 {[%clk 0:02:42]} 7. Bf4 {[%clk 0:02:59]}  Bg7 {[%clk 0:02:42]} 8. Nf3 {[%clk 0:02:59]}  O-O {[%clk 0:02:43]} 9. O-O {[%clk 0:02:59]}  Bf5 {[%clk 0:02:43]} 10. Bxf5 {[%clk 0:02:59]}  gxf5 {[%clk 0:02:43]} 11. Na3 {[%clk 0:02:57]}  a6 {[%clk 0:02:41]} 12. Nc2 {[%clk 0:02:58]}  e6 {[%clk 0:02:41]} 13. a4 {[%clk 0:02:58]}  Ne4 {[%clk 0:02:41]} 14. Qd3 {[%clk 0:02:56]}  Rc8 {[%clk 0:02:27]} 15. Ne3 {[%clk 0:02:54]}  Qb6 {[%clk 0:02:20]} 16. b4 {[%clk 0:02:45]}  Ne7 {[%clk 0:02:12]} 17. Rfc1 {[%clk 0:02:40]}  Ng6 {[%clk 0:02:11]} 18. Bh2 {[%clk 0:02:38]}  Rc6 {[%clk 0:01:56]} 19. a5 {[%clk 0:02:35]}  Qb5 {[%clk 0:01:50]} 20. Qxb5 {[%clk 0:02:35]}  axb5 {[%clk 0:01:51]} 21. Nd1 {[%clk 0:02:31]}  Rfc8 {[%clk 0:01:49]} 22. Ra3 {[%clk 0:02:25]}  Rc4 {[%clk 0:01:44]} 23. Kf1 {[%clk 0:02:20]}  Rxb4 {[%clk 0:01:35]} 24. cxb4 {[%clk 0:02:12]}  Rxc1 {[%clk 0:01:35]} 25. Ke2 {[%clk 0:02:08]}  Bf8 {[%clk 0:01:26]} 26. h4 {[%clk 0:01:37]}  Bxb4 {[%clk 0:01:12]} 27. Rb3 {[%clk 0:01:36]}  Bxa5 {[%clk 0:01:03]} 28. h5 {[%clk 0:01:36]}  Ne7 {[%clk 0:00:52]} 29. Rxb5 {[%clk 0:01:35]}  b6 {[%clk 0:00:49]} 30. Bf4 {[%clk 0:01:34]}  Rc2+ {[%clk 0:00:46]} 31. Kf1 {[%clk 0:01:22]}  Ra2 {[%clk 0:00:28]} 32. g3 {[%clk 0:01:17]}  Ra1 {[%clk 0:00:21]} 33. Ke2 {[%clk 0:01:16]}  Rxd1 {[%clk 0:00:20]} 34. Rxa5 {[%clk 0:00:23]}  Nc3+ {[%clk 0:00:19]} 35. Ke3 {[%clk 0:00:21]}  bxa5 {[%clk 0:00:20]} 36. Bd6 {[%clk 0:00:19]}  Nc6 {[%clk 0:00:16]} 37. Kf4 {[%clk 0:00:20]}  Nxd4 {[%clk 0:00:15]} 38. Ne5 {[%clk 0:00:20]}  Ndb5 {[%clk 0:00:10]} 39. Be7 {[%clk 0:00:18]}  a4 {[%clk 0:00:09]} 40. Nd7 {[%clk 0:00:18]}  a3 {[%clk 0:00:09]} 41. Kg5 {[%clk 0:00:15]}  a2 {[%clk 0:00:08]} 42. Nf6+ {[%clk 0:00:15]}  Kg7 {[%clk 0:00:08]} 43. h6+ {[%clk 0:00:15]}  Kh8 {[%clk 0:00:08]} 44. Bf8 {[%clk 0:00:14]}  Ne4+ {[%clk 0:00:06]} 45. Nxe4 {[%clk 0:00:09]}  dxe4 {[%clk 0:00:07]} 46. Kf6 {[%clk 0:00:10]}  Kg8 {[%clk 0:00:07]} 0-1


[Site "https://www.chess.com"]

[Event "Titled Tuesday Blitz April 4 Early 2023"]
[White "Rozman, Levy"]
[Black "Alberto, Manuel"]
[WhiteFideId "2039877"]
[BlackFideId "10100148"]
[WhiteElo "2376"]
[BlackElo "2166"]
[Result "1-0"]
[Round "02"]
[TimeControl "180+2"]
[Date "2023.04.04"]
[WhiteClock "0:01:58"]
[BlackClock "0:01:50"]

1. e4 {[%clk 0:03:00]}  c5 {[%clk 0:02:58]} 2. Nc3 {[%clk 0:03:01]}  d6 {[%clk 0:02:57]} 3. d4 {[%clk 0:03:01]}  cxd4 {[%clk 0:02:57]} 4. Qxd4 {[%clk 0:03:02]}  Nc6 {[%clk 0:02:57]} 5. Qd2 {[%clk 0:03:02]}  g6 {[%clk 0:02:55]} 6. b3 {[%clk 0:03:03]}  Bg7 {[%clk 0:02:55]} 7. Bb2 {[%clk 0:03:03]}  a6 {[%clk 0:02:50]} 8. O-O-O {[%clk 0:03:03]}  Nh6 {[%clk 0:02:45]} 9. h4 {[%clk 0:02:58]}  Ng4 {[%clk 0:02:43]} 10. Kb1 {[%clk 0:02:48]}  h5 {[%clk 0:02:43]} 11. Nd5 {[%clk 0:02:41]}  Bxb2 {[%clk 0:02:40]} 12. Kxb2 {[%clk 0:02:42]}  Be6 {[%clk 0:02:34]} 13. f3 {[%clk 0:02:41]}  Nge5 {[%clk 0:02:33]} 14. Nf4 {[%clk 0:02:36]}  Bd7 {[%clk 0:02:30]} 15. Nge2 {[%clk 0:02:28]}  Rc8 {[%clk 0:02:28]} 16. Nd4 {[%clk 0:02:19]}  b5 {[%clk 0:02:26]} 17. Be2 {[%clk 0:02:15]}  Nxd4 {[%clk 0:02:15]} 18. Qxd4 {[%clk 0:02:16]}  Qa5 {[%clk 0:02:14]} 19. Nd5 {[%clk 0:02:10]}  Be6 {[%clk 0:02:12]} 20. f4 {[%clk 0:02:08]}  Bxd5 {[%clk 0:02:03]} 21. exd5 {[%clk 0:02:07]}  Nc4+ {[%clk 0:01:57]} 22. Bxc4 {[%clk 0:02:04]}  O-O {[%clk 0:01:52]} 23. Bd3 {[%clk 0:02:02]}  b4 {[%clk 0:01:52]} 24. f5 {[%clk 0:02:00]}  Qa3+ {[%clk 0:01:51]} 25. Kb1 {[%clk 0:02:00]}  a5 {[%clk 0:01:50]} 26. Qb2 {[%clk 0:01:58]} 1-0


[Site "https://www.chess.com"]

[Event "Titled Tuesday Blitz April 4 Early 2023"]
[White "babbilator"]
[Black "Darini, Pouria"]
[BlackFideId "12502200"]
[WhiteElo "2260"]
[BlackElo "2482"]
[Result "0-1"]
[Round "02"]
[TimeControl "180+2"]
[Date "2023.04.04"]
[WhiteClock "0:00:03"]
[BlackClock "0:00:07"]

1. e4 {[%clk 0:03:00]}  c5 {[%clk 0:02:59]} 2. Nc3 {[%clk 0:03:00]}  Nc6 {[%clk 0:02:59]} 3. Nf3 {[%clk 0:03:01]}  d6 {[%clk 0:02:59]} 4. d4 {[%clk 0:03:00]}  cxd4 {[%clk 0:02:59]} 5. Nxd4 {[%clk 0:03:01]}  Nf6 {[%clk 0:03:00]} 6. f3 {[%clk 0:03:01]}  e5 {[%clk 0:02:56]} 7. Nb3 {[%clk 0:03:01]}  Be6 {[%clk 0:02:55]} 8. Nd5 {[%clk 0:03:01]}  Be7 {[%clk 0:01:57]} 9. Be3 {[%clk 0:02:58]}  O-O {[%clk 0:01:51]} 10. Qd2 {[%clk 0:02:56]}  a5 {[%clk 0:01:45]} 11. Bb5 {[%clk 0:02:46]}  a4 {[%clk 0:01:37]} 12. Bb6 {[%clk 0:02:46]}  Qd7 {[%clk 0:00:52]} 13. Na5 {[%clk 0:02:33]}  a3 {[%clk 0:00:22]} 14. b3 {[%clk 0:02:27]}  Rfc8 {[%clk 0:00:19]} 15. Rd1 {[%clk 0:02:20]}  Rab8 {[%clk 0:00:11]} 16. Ba7 {[%clk 0:01:30]}  Ra8 {[%clk 0:00:11]} 17. Bb6 {[%clk 0:01:30]}  Ne8 {[%clk 0:00:08]} 18. Nc4 {[%clk 0:01:21]}  Rab8 {[%clk 0:00:05]} 19. O-O {[%clk 0:01:18]}  Bd8 {[%clk 0:00:05]} 20. Be3 {[%clk 0:01:10]}  f6 {[%clk 0:00:02]} 21. Ncb6 {[%clk 0:01:09]}  Qf7 {[%clk 0:00:03]} 22. Nxc8 {[%clk 0:01:08]}  Rxc8 {[%clk 0:00:04]} 23. Kh1 {[%clk 0:01:00]}  f5 {[%clk 0:00:04]} 24. exf5 {[%clk 0:00:51]}  Bxf5 {[%clk 0:00:04]} 25. Bc4 {[%clk 0:00:48]}  Be6 {[%clk 0:00:05]} 26. Nb6 {[%clk 0:00:45]}  Bxb6 {[%clk 0:00:05]} 27. Bxe6 {[%clk 0:00:44]}  Qxe6 {[%clk 0:00:06]} 28. Bxb6 {[%clk 0:00:44]}  Ne7 {[%clk 0:00:06]} 29. c4 {[%clk 0:00:42]}  h6 {[%clk 0:00:06]} 30. Ba5 {[%clk 0:00:37]}  b5 {[%clk 0:00:05]} 31. Bb4 {[%clk 0:00:33]}  bxc4 {[%clk 0:00:05]} 32. bxc4 {[%clk 0:00:34]}  Rxc4 {[%clk 0:00:05]} 33. Bxd6 {[%clk 0:00:33]}  Nf5 {[%clk 0:00:05]} 34. Bxa3 {[%clk 0:00:32]}  Rh4 {[%clk 0:00:05]} 35. Qd5 {[%clk 0:00:30]}  Ng3+ {[%clk 0:00:04]} 36. Kg1 {[%clk 0:00:31]}  Qxd5 {[%clk 0:00:04]} 37. Rxd5 {[%clk 0:00:30]}  Nxf1 {[%clk 0:00:05]} 38. Kxf1 {[%clk 0:00:31]}  Ra4 {[%clk 0:00:05]} 39. Rd3 {[%clk 0:00:29]}  Nf6 {[%clk 0:00:05]} 40. Bd6 {[%clk 0:00:21]}  e4 {[%clk 0:00:06]} 41. fxe4 {[%clk 0:00:19]}  Nxe4 {[%clk 0:00:06]} 42. a3 {[%clk 0:00:17]}  Ra6 {[%clk 0:00:06]} 43. Bb4 {[%clk 0:00:16]}  Rf6+ {[%clk 0:00:06]} 44. Kg1 {[%clk 0:00:16]}  Rc6 {[%clk 0:00:05]} 45. h3 {[%clk 0:00:16]}  h5 {[%clk 0:00:05]} 46. Re3 {[%clk 0:00:10]}  Rc4 {[%clk 0:00:05]} 47. h4 {[%clk 0:00:06]}  Kf7 {[%clk 0:00:06]} 48. Kh2 {[%clk 0:00:06]}  Kf6 {[%clk 0:00:06]} 49. Rf3+ {[%clk 0:00:07]}  Kg6 {[%clk 0:00:06]} 50. Rf4 {[%clk 0:00:05]}  Kh6 {[%clk 0:00:06]} 51. Be1 {[%clk 0:00:04]}  g5 {[%clk 0:00:07]} 52. g3 {[%clk 0:00:03]}  gxf4 {[%clk 0:00:07]} 0-1


[Site "https://www.chess.com"]

[Event "Titled Tuesday Blitz April 4 Early 2023"]
[White "Tsotsonava, Elene"]
[Black "Kozak, Antoni"]
[WhiteFideId "13615939"]
[BlackFideId "21832030"]
[WhiteElo "1829"]
[BlackElo "2470"]
[Result "0-1"]
[Round "02"]
[TimeControl "180+2"]
[Date "2023.04.04"]
[WhiteClock "0:01:59"]
[BlackClock "0:02:10"]

1. e4 {[%clk 0:02:59]}  Nc6 {[%clk 0:03:00]} 2. Nf3 {[%clk 0:02:58]}  e5 {[%clk 0:03:00]} 3. Nc3 {[%clk 0:02:58]}  Nf6 {[%clk 0:02:59]} 4. d4 {[%clk 0:02:59]}  exd4 {[%clk 0:02:56]} 5. Nxd4 {[%clk 0:03:00]}  Bc5 {[%clk 0:02:51]} 6. Nf5 {[%clk 0:02:50]}  d6 {[%clk 0:02:48]} 7. Nxg7+ {[%clk 0:02:49]}  Kf8 {[%clk 0:02:45]} 8. Bh6 {[%clk 0:02:34]}  Kg8 {[%clk 0:02:41]} 9. Nf5 {[%clk 0:02:29]}  Bxf5 {[%clk 0:02:26]} 10. exf5 {[%clk 0:02:30]}  Qd7 {[%clk 0:02:27]} 11. Nd5 {[%clk 0:02:05]}  Qxf5 {[%clk 0:02:12]} 12. Qg4+ {[%clk 0:01:59]}  Nxg4 {[%clk 0:02:10]} 0-1


[Site "https://www.chess.com"]

[Event "Titled Tuesday Blitz April 4 Early 2023"]
[White "Matute Escobar, Roxanny"]
[Black "Sadykov, Ramil"]
[WhiteFideId "3926028"]
[BlackFideId "24113590"]
[WhiteElo "1844"]
[BlackElo "2245"]
[Result "1/2-1/2"]
[Round "02"]
[TimeControl "180+2"]
[Date "2023.04.04"]
[WhiteClock "0:00:07"]
[BlackClock "0:00:08"]

1. e4 {[%clk 0:02:58]}  c5 {[%clk 0:02:59]} 2. Nf3 {[%clk 0:02:58]}  e6 {[%clk 0:02:58]} 3. d4 {[%clk 0:02:59]}  cxd4 {[%clk 0:02:59]} 4. Nxd4 {[%clk 0:02:59]}  Nc6 {[%clk 0:02:57]} 5. Nc3 {[%clk 0:03:00]}  Qc7 {[%clk 0:02:56]} 6. a3 {[%clk 0:02:59]}  Nf6 {[%clk 0:02:51]} 7. Be2 {[%clk 0:02:58]}  a6 {[%clk 0:02:49]} 8. O-O {[%clk 0:02:57]}  Bd6 {[%clk 0:02:36]} 9. f4 {[%clk 0:02:36]}  Nxd4 {[%clk 0:02:36]} 10. Be3 {[%clk 0:02:24]}  Nxe2+ {[%clk 0:02:34]} 11. Qxe2 {[%clk 0:02:22]}  Bc5 {[%clk 0:02:34]} 12. f5 {[%clk 0:02:18]}  d6 {[%clk 0:02:25]} 13. fxe6 {[%clk 0:02:18]}  Bxe3+ {[%clk 0:02:14]} 14. Qxe3 {[%clk 0:02:17]}  Bxe6 {[%clk 0:02:13]} 15. Kh1 {[%clk 0:02:16]}  Nd7 {[%clk 0:02:07]} 16. Qg5 {[%clk 0:02:12]}  O-O {[%clk 0:02:05]} 17. Rad1 {[%clk 0:02:06]}  f6 {[%clk 0:01:59]} 18. Qg3 {[%clk 0:02:01]}  Ne5 {[%clk 0:01:56]} 19. Ne2 {[%clk 0:01:59]}  Qxc2 {[%clk 0:01:46]} 20. Nd4 {[%clk 0:01:58]}  Qc4 {[%clk 0:01:45]} 21. b3 {[%clk 0:01:53]}  Qc8 {[%clk 0:01:44]} 22. Rc1 {[%clk 0:01:46]}  Qd7 {[%clk 0:01:36]} 23. b4 {[%clk 0:01:36]}  Rac8 {[%clk 0:01:35]} 24. Rcd1 {[%clk 0:01:36]}  Rc4 {[%clk 0:01:27]} 25. Nb3 {[%clk 0:01:16]}  Qe7 {[%clk 0:01:20]} 26. Nd4 {[%clk 0:00:48]}  b5 {[%clk 0:01:16]} 27. Qh4 {[%clk 0:00:35]}  Rfc8 {[%clk 0:01:09]} 28. Ne2 {[%clk 0:00:34]}  d5 {[%clk 0:01:03]} 29. Nf4 {[%clk 0:00:22]}  Rxe4 {[%clk 0:01:00]} 30. Qg3 {[%clk 0:00:22]}  Qf7 {[%clk 0:00:56]} 31. Nd3 {[%clk 0:00:12]}  Nxd3 {[%clk 0:00:55]} 32. Rxd3 {[%clk 0:00:13]}  Rec4 {[%clk 0:00:47]} 33. Qe3 {[%clk 0:00:11]}  h6 {[%clk 0:00:44]} 34. Rfd1 {[%clk 0:00:11]}  d4 {[%clk 0:00:39]} 35. Qf4 {[%clk 0:00:10]}  Qg6 {[%clk 0:00:37]} 36. h3 {[%clk 0:00:10]}  Rc2 {[%clk 0:00:36]} 37. Rg3 {[%clk 0:00:10]}  Qf5 {[%clk 0:00:34]} 38. Qxd4 {[%clk 0:00:08]}  Rc1 {[%clk 0:00:33]} 39. Rxc1 {[%clk 0:00:07]}  Rxc1+ {[%clk 0:00:34]} 40. Kh2 {[%clk 0:00:07]}  Qe5 {[%clk 0:00:33]} 41. Qd8+ {[%clk 0:00:07]}  Kh7 {[%clk 0:00:32]} 42. Qf8 {[%clk 0:00:08]}  f5 {[%clk 0:00:28]} 43. Qe8 {[%clk 0:00:05]}  Rc3 {[%clk 0:00:27]} 44. Qg6+ {[%clk 0:00:05]}  Kh8 {[%clk 0:00:18]} 45. Qe8+ {[%clk 0:00:06]}  Kh7 {[%clk 0:00:16]} 46. Qg6+ {[%clk 0:00:06]}  Kg8 {[%clk 0:00:10]} 47. Qe8+ {[%clk 0:00:07]}  Kh7 {[%clk 0:00:08]} 1/2-1/2


[Site "https://www.chess.com"]